bitfinex-derivatives/quotes_SOLF0:USTF0_20241021
["timestamp","ask_amount","ask_price","bid_price","bid_amount"]
[1729517292634,8.66820982,165.79,165.61,4.0141]
[1729517292830,3.0181,165.73,165.69,3.0186]
[1729517293226,3.0183,165.72,165.68,5.7]
[1729517293431,26.87820982,165.79,165.64,5.7]
[1729517294135,3.0186,165.7,165.66,3.0191]
[1729517294824,5.7,165.74,165.61,4.0141]
[1729517295026,25.1772,165.73,165.59,5.7]
[1729517295430,6.9672,165.73,165.59,5.7]
[1729517295631,6.9672,165.73,165.6,2.615]
[1729517296035,3.0194,165.66,165.6,2.615]
[1729517296230,3.02053723,165.69,165.6,2.615]
[1729517296430,3.0187,165.7,165.63,3.0196]
[1729517296630,2.96494267,165.69,165.63,3.0196]
[1729517296835,6.9672,165.73,165.63,3.0196]
[1729517297037,3.0192,165.67,165.63,3.0196]
[1729517297232,3.02567369,165.69,165.63,3.0196]
[1729517297428,6.9672,165.73,165.61,3.02]
[1729517297635,3.0187,165.7,165.6,2.615]
[1729517297834,2.9650548,165.7,165.6,2.615]
[1729517298031,6.9672,165.73,165.63,3.0198]
[1729517298837,3.0194,165.66,165.62,3.0199]
[1729517299330,2.99739206,165.69,165.6,2.586]
[1729517299527,3.0199,165.63,165.6,5.6063]
[1729517299730,3.02126723,165.67,165.53,1.2649]
[1729517300048,3.02126723,165.67,165.55,3.0211]
[1729517300049,3.0206,165.59,165.55,3.0211]
[1729517300334,3.0206,165.59,165.54,8.331]
[1729517300536,3.0207,165.58,165.55,3.0212]
[1729517300735,3.0207,165.58,165.54,8.331]
[1729517300736,8.75330227,165.67,165.54,8.331]
[1729517300931,6.0387,165.66,165.51,8.7218]
[1729517301136,6.0387,165.66,165.43,71.3069]
[1729517301137,3.021,165.57,165.49,5.7]
[1729517301441,5.7,165.6,165.49,5.7]
[1729517301638,5.7,165.6,165.53,3.0216]
[1729517301837,3.0211,165.56,165.49,5.7]
[1729517302039,5.7,165.6,165.51,3.0218]
[1729517302540,3.0214,165.55,165.51,3.0218]
[1729517302738,5.7,165.6,165.5,5.7]
[1729517302940,23.91,165.6,165.44,3.9298]
[1729517303235,23.91,165.6,165.44,2.631]
[1729517303236,1.2817,165.59,165.44,2.631]
[1729517304942,3.0229,165.46,165.44,2.631]
[1729517305145,8.77145127,165.52,165.44,2.631]
[1729517305338,5.7,165.52,165.44,2.631]
[1729517305643,8.77326655,165.52,165.39,1.3359]
[1729517305943,8.77326655,165.52,165.4,5.7]
[1729517306138,3.024,165.4,165.36,5.7]
[1729517306444,26.98326655,165.52,165.35,5.687]
[1729517306445,5.7,165.46,165.35,5.687]
[1729517306632,21.28326655,165.52,165.35,2.6621]
[1729517306633,3.0247,165.36,165.35,2.6621]
[1729517306836,5.7,165.43,165.35,2.6621]
[1729517307042,5.7,165.43,165.35,5.6868]
[1729517307348,8.73212024,165.43,165.35,2.6621]
[1729517307636,5.7,165.43,165.35,5.687]
[1729517307833,3.0239,165.41,165.35,2.6621]
[1729517308235,5.7,165.43,165.35,2.6621]
[1729517308842,3.0239,165.41,165.35,2.6621]
[1729517309039,5.7,165.43,165.31,5.7]
[1729517310238,5.7,165.43,165.32,3.0253]
[1729517310239,3.0247,165.37,165.32,3.0253]
[1729517310438,3.0247,165.37,165.3,5.7]
[1729517310843,3.0243,165.39,165.3,5.7]
[1729517311246,5.7,165.43,165.3,5.7]
[1729517311746,2.97704218,165.45,165.3,5.7]
[1729517311956,5.7,165.45,165.3,5.7]
[1729517312246,69.68151348,165.49,165.3,5.7]
[1729517312453,3.0232,165.45,165.4,3.0238]
[1729517312649,5.7,165.48,165.4,3.0238]
[1729517312949,66.6263,165.49,165.4,3.0238]
[1729517313143,5.7,165.48,165.4,3.0238]
[1729517313347,5.7,165.48,165.38,5.7]
[1729517313651,5.7,165.48,165.39,3.0242]
[1729517314047,3.0236,165.43,165.39,3.0242]
[1729517316650,3.0233,165.44,165.4,3.0239]
[1729517316855,5.7,165.48,165.39,2.6389]
[1729517317258,3.0232,165.45,165.41,3.0236]
[1729517317444,5.7,165.48,165.41,3.0236]
[1729517317750,3.0231,165.45,165.42,3.0236]
[1729517318056,3.0231,165.45,165.39,2.6389]
[1729517318251,3.0231,165.45,165.41,3.0237]
[1729517318647,5.7,165.48,165.41,3.0237]
[1729517318845,3.0233,165.44,165.41,3.0237]
[1729517319061,5.7,165.48,165.39,2.6389]
[1729517319353,3.0237,165.42,165.39,2.6389]
[1729517319755,5.7,165.48,165.39,2.6389]
[1729517319955,3.0232,165.45,165.39,2.6389]
[1729517320149,5.7,165.48,165.39,2.6389]
[1729517320556,3.0233,165.44,165.41,3.0237]
[1729517321661,5.7,165.48,165.39,2.6389]
[1729517322163,3.0237,165.42,165.39,2.6389]
[1729517322362,5.7,165.48,165.38,3.0243]
[1729517322658,3.0231,165.45,165.42,3.0236]
[1729517322853,5.7,165.48,165.36,1.3516]
[1729517323757,3.0236,165.43,165.39,3.024]
[1729517323957,5.7,165.48,165.39,3.024]
[1729517324357,3.0239,165.41,165.38,3.0243]
[1729517324655,5.7,165.48,165.36,1.3516]
[1729517325063,3.0239,165.41,165.38,3.0243]
[1729517325957,5.7,165.48,165.39,3.0242]
[1729517326156,5.7,165.48,165.36,1.3516]
[1729517326762,3.0234,165.44,165.36,1.3516]
[1729517326958,5.7,165.48,165.35,5.7]
[1729517327156,23.86,165.48,165.31,2.6051]
[1729517327359,3.0241,165.4,165.31,8.3051]
[1729517327859,3.0239,165.41,165.31,8.3051]
[1729517328061,5.7,165.42,165.31,8.3051]
[1729517328363,5.7,165.42,165.35,3.0248]
[1729517328559,3.0241,165.4,165.35,3.0248]
[1729517328763,5.7,165.42,165.33,3.0251]
[1729517328967,3.0243,165.39,165.31,2.6051]
[1729517329361,3.0243,165.39,165.34,3.0249]
[1729517329863,3.0241,165.4,165.31,2.6051]
[1729517330560,5.7,165.42,165.31,2.6051]
[1729517330561,5.7,165.42,165.35,3.0248]
[1729517331058,5.7,165.42,165.31,2.6051]
[1729517331564,2.98206633,165.41,165.31,2.6051]
[1729517331967,3.0243,165.39,165.34,3.0249]
[1729517332163,3.0243,165.39,165.31,2.6051]
[1729517332564,5.7,165.42,165.31,2.6051]
[1729517332962,3.0237,165.42,165.36,3.0246]
[1729517333167,3.0237,165.42,165.31,2.6051]
[1729517334068,3.0237,165.42,165.38,3.0242]
[1729517334864,3.0239,165.41,165.38,3.0243]
[1729517335370,5.7,165.44,165.38,3.0243]
[1729517335563,3.0237,165.42,165.38,3.0243]
[1729517335869,3.0237,165.42,165.31,2.6051]
[1729517336171,3.0237,165.42,165.39,3.0241]
[1729517336366,3.0237,165.42,165.31,2.6051]
[1729517336367,3.0231,165.45,165.35,5.7]
[1729517336565,5.7,165.46,165.4,3.0238]
[1729517337466,3.0234,165.44,165.41,3.0237]
[1729517338065,5.7,165.47,165.4,3.0238]
[1729517338667,3.0234,165.44,165.4,3.0238]
[1729517338875,3.0234,165.44,165.36,1.3653]
[1729517339166,5.7,165.47,165.41,3.0238]
[1729517339367,3.0232,165.45,165.41,3.0238]
[1729517339570,5.7,165.47,165.41,3.0238]
[1729517339872,3.023,165.46,165.36,1.3653]
[1729517340268,3.0231,165.45,165.42,3.0235]
[1729517341870,3.0231,165.45,165.36,1.3653]
[1729517342071,3.0231,165.45,165.41,3.0238]
[1729517342273,5.7,165.47,165.36,1.3653]
[1729517342671,5.7,165.47,165.39,3.024]
[1729517342866,3.0236,165.43,165.39,3.024]
[1729517343273,3.0236,165.43,165.4,3.024]
[1729517343474,3.0234,165.44,165.36,1.3653]
[1729517343683,5.7,165.47,165.36,1.3653]
[1729517343983,5.7,165.48,165.36,1.3653]
[1729517344171,3.0233,165.44,165.36,1.3653]
[1729517344581,3.0233,165.44,165.4,3.0239]
[1729517344778,3.0231,165.45,165.36,1.3653]
[1729517345181,3.0231,165.45,165.41,3.0237]
[1729517345885,3.0233,165.44,165.41,3.0237]
[1729517347586,23.86,165.48,165.34,5.7]
[1729517348086,3.0241,165.4,165.36,3.0246]
[1729517348278,3.0241,165.4,165.34,5.7]
[1729517349582,3.0241,165.4,165.36,3.0245]
[1729517349981,3.0238,165.41,165.37,3.0244]
[1729517350284,3.0238,165.41,165.34,5.7]
[1729517350483,3.0235,165.43,165.39,3.024]
[1729517350686,5.7,165.48,165.35,1.3005]
[1729517351778,3.0229,165.46,165.35,1.3005]
[1729517352178,5.7,165.48,165.35,1.3005]
[1729517352377,5.7,165.48,165.41,3.0237]
[1729517352378,3.0231,165.45,165.41,3.0237]
[1729517352779,3.023,165.46,165.43,3.0234]
[1729517352984,5.7,165.49,165.43,3.0234]
[1729517353584,3.0228,165.47,165.43,3.0234]
[1729517353891,3.0228,165.47,165.4,2.7114]
[1729517354388,3.0228,165.47,165.43,3.0233]
[1729517354585,3.0228,165.47,165.4,2.7114]
[1729517354790,1.2983,165.54,165.45,3.0229]
[1729517354791,5.7,165.52,165.45,3.0229]
[1729517354988,3.10154867,165.51,165.45,3.0229]
[1729517355290,3.0225,165.48,165.45,3.0229]
[1729517355693,3.022,165.51,165.4,2.7114]
[1729517355888,5.7,165.56,165.4,2.7114]
[1729517356893,3.0219,165.52,165.4,2.7114]
[1729517357095,5.7,165.56,165.4,2.7114]
[1729517357287,5.7,165.56,165.5,3.0221]
[1729517357483,3.0218,165.52,165.47,5.7]
[1729517357991,3.0218,165.52,165.48,3.0224]
[1729517358788,3.0218,165.52,165.47,5.7]
[1729517358987,3.0218,165.52,165.49,3.0223]
[1729517359496,112.44785222,165.59,165.47,5.7]
[1729517359497,71.06,165.58,165.47,5.7]
[1729517359692,71.06,165.58,165.48,2.6138]
[1729517359893,5.7,165.58,165.48,2.6138]
[1729517360094,3.0215,165.54,165.48,2.6138]
[1729517360290,112.44785222,165.59,165.48,2.6138]
[1729517360491,3.0217,165.53,165.5,3.0221]
[1729517360693,112.44785222,165.59,165.48,2.6138]
[1729517360892,1.2429,165.59,165.48,2.6138]
[1729517361194,1.2429,165.59,165.48,3.8962]
[1729517361898,1.2429,165.59,165.51,3.0219]
[1729517362292,3.0215,165.54,165.51,3.0219]
[1729517366197,8.67554406,165.6,165.48,3.8962]
[1729517366399,3.0214,165.55,165.52,3.0217]
[1729517366992,3.021,165.57,165.51,3.0219]
[1729517367196,8.67554406,165.6,165.48,3.8962]
[1729517367699,3.0211,165.56,165.53,3.0215]
[1729517368598,3.021,165.57,165.48,3.8962]
[1729517368998,1.2553,165.64,165.55,3.0212]
[1729517369200,5.7,165.63,165.55,3.0212]
[1729517369394,19.61883202,165.73,165.48,3.8962]
[1729517369395,5.7,165.7,165.53,5.7]
[1729517369596,3.0193,165.66,165.63,3.0197]
[1729517370502,6.06408488,165.67,165.61,3.0201]
[1729517370699,5.7,165.7,165.59,5.7]
[1729517371000,3.0185,165.7,165.66,3.0191]
[1729517371195,5.7,165.72,165.59,5.7]
[1729517371595,3.0185,165.7,165.66,3.0191]
[1729517373294,3.0185,165.7,165.67,3.019]
[1729517373500,3.0185,165.7,165.64,5.7]
[1729517373698,1.337,165.75,165.64,5.7]
[1729517373894,7.037,165.75,165.64,5.7]
[1729517374099,7.037,165.75,165.69,3.0187]
[1729517374299,7.037,165.75,165.64,5.7]
[1729517374806,3.0188,165.69,165.64,5.7]
[1729517375204,3.0188,165.69,165.65,3.0193]
[1729517375401,3.0188,165.69,165.64,5.7]
[1729517376208,7.037,165.75,165.61,5.7]
[1729517376407,7.037,165.75,165.56,4.25892996]
[1729517376408,25.197,165.75,165.56,1.2717]
[1729517376609,18.16,165.73,165.56,1.2717]
[1729517376809,3.0195,165.65,165.61,3.0201]
[1729517377009,2.96753908,165.67,165.57,5.7]
[1729517377207,5.7,165.68,165.57,5.7]
[1729517377514,3.0193,165.66,165.62,3.0198]
[1729517378210,3.0193,165.66,165.62,3.0199]
[1729517378807,3.05214461,165.67,165.45,9.08559091]
[1729517379006,1.315,165.65,165.5,2.6848]
[1729517379215,1.315,165.65,165.51,5.7]
[1729517379418,3.0202,165.61,165.56,3.0209]
[1729517380117,3.0202,165.61,165.57,3.0208]
[1729517380417,3.0202,165.61,165.51,5.7]
[1729517380621,3.0202,165.61,165.58,3.0207]
[1729517380807,3.0202,165.61,165.51,5.7]
[1729517381206,3.0204,165.6,165.56,3.021]
[1729517383310,1.315,165.65,165.51,5.7]
[1729517383511,1.315,165.65,165.47,1.306]
[1729517383712,1.315,165.65,165.47,7.006]
[1729517384018,1.315,165.65,165.5,3.022]
[1729517384517,3.0216,165.54,165.5,3.022]
[1729517385319,3.0218,165.53,165.49,3.0223]
[1729517385920,3.02296754,165.56,165.31,9.0769]
[1729517386116,5.7,165.53,165.41,1.293]
[1729517386313,8.77722338,165.53,165.42,5.7]
[1729517386816,3.0226,165.48,165.44,3.0232]
[1729517387014,3.0226,165.48,165.42,5.7]
[1729517387223,8.77722338,165.53,165.42,5.7]
[1729517387716,5.7,165.58,165.42,5.7]
[1729517387921,8.75000737,165.58,165.42,5.7]
[1729517388124,3.0224,165.49,165.45,3.023]
[1729517388422,3.0224,165.49,165.42,5.7]
[1729517388423,1.2795,165.57,165.42,5.7]
[1729517388823,3.0222,165.5,165.46,3.0228]
[1729517389224,5.7,165.53,165.42,5.7]
[1729517389418,1.2795,165.57,165.42,5.7]
[1729517389625,5.7,165.56,165.42,5.7]
[1729517389813,3.0214,165.55,165.51,3.0219]
[1729517390017,5.7,165.56,165.51,3.0219]
[1729517390525,3.05000737,165.58,165.52,3.0218]
[1729517390728,5.7,165.59,165.48,1.2616]
[1729517391427,70.98,165.6,165.48,1.2616]
[1729517391728,1.3326,165.65,165.49,2.5302]
[1729517391729,5.7,165.63,165.49,2.5302]
[1729517391921,3.0207,165.59,165.54,3.0213]
[1729517392517,3.0215,165.54,165.5,3.0221]
[1729517392721,5.7,165.58,165.46,5.7]
[1729517392722,8.6914633,165.58,165.46,5.7]
[1729517393029,5.7,165.63,165.46,5.7]
[1729517394121,3.0208,165.58,165.54,3.0213]
[1729517394428,3.0208,165.58,165.51,5.7]
[1729517394625,1.3326,165.65,165.51,5.7]
[1729517394824,1.3326,165.65,165.52,1.3615]
[1729517395016,7.0326,165.65,165.52,1.3615]
[1729517395222,7.0326,165.65,165.53,2.6468]
[1729517395418,3.0207,165.59,165.55,3.0212]
[1729517395825,7.0326,165.65,165.53,2.6468]
[1729517396128,25.1926,165.65,165.53,2.6468]
[1729517396321,25.1926,165.65,165.48,1.3299]
[1729517396522,3.0203,165.61,165.52,3.0218]
[1729517396728,5.7,165.6,165.49,5.7]
[1729517397126,3.021,165.57,165.52,3.0217]
[1729517397426,3.021,165.57,165.49,5.7]
[1729517397627,3.04811264,165.58,165.52,3.0217]
[1729517397828,3.0211,165.56,165.52,3.0217]
[1729517398728,3.0211,165.56,165.53,3.0216]
[1729517400525,3.0214,165.55,165.51,3.022]
[1729517400830,1.3326,165.65,165.49,5.7]
[1729517401031,1.3326,165.65,165.56,3.0209]
[1729517401032,3.0204,165.6,165.56,3.0209]
[1729517401333,3.0204,165.6,165.49,5.7]
[1729517401531,5.7,165.64,165.49,5.7]
[1729517402435,18.16,165.63,165.46,2.5583]
[1729517402731,3.0223,165.5,165.46,2.5583]
[1729517403041,3.09099111,165.5,165.45,3.023]
[1729517403328,3.09582834,165.52,165.41,2.6672]
[1729517403536,5.7,165.53,165.41,2.6672]
[1729517403934,3.0222,165.51,165.46,3.0228]
[1729517404136,8.68275805,165.53,165.42,5.7]
[1729517404335,8.68275805,165.53,165.45,3.0229]
[1729517404336,3.0224,165.49,165.45,3.0229]
[1729517405132,5.7,165.48,165.41,2.6672]
[1729517405435,5.7,165.48,165.36,65.3]
[1729517405436,5.7,165.48,165.37,2.7198]
[1729517405631,3.0235,165.43,165.39,3.0241]
[1729517405831,5.7,165.48,165.37,2.7198]
[1729517406033,2.98275805,165.53,165.37,2.7198]
[1729517406241,3.0222,165.5,165.41,3.0237]
[1729517406539,5.7,165.53,165.41,5.7]
[1729517406744,5.7,165.53,165.42,1.3013]
[1729517406934,3.0217,165.53,165.46,3.0228]
[1729517407134,3.0217,165.53,165.42,1.3013]
[1729517407542,3.0218,165.52,165.48,3.0225]
[1729517407738,2.98335618,165.54,165.42,1.3013]
[1729517407941,23.86,165.56,165.42,7.0013]
[1729517408138,3.0231,165.45,165.41,3.0238]
[1729517408344,5.7,165.5,165.39,5.7]
[1729517408544,5.7,165.51,165.39,5.7]
[1729517408746,3.0225,165.49,165.42,3.0235]
[1729517408937,5.7,165.51,165.39,5.7]
[1729517409443,3.0226,165.48,165.44,3.0231]
[1729517409638,5.7,165.51,165.39,5.7]
[1729517410235,3.0225,165.48,165.44,3.0231]
[1729517410639,3.0231,165.45,165.41,3.0237]
[1729517410836,5.7,165.51,165.37,8.4198]
[1729517411043,23.86,165.51,165.37,2.7198]
[1729517411243,3.0243,165.38,165.37,2.7198]
[1729517411448,2.95563099,165.42,165.33,7.0403]
[1729517411646,5.7,165.44,165.28,2.6129]
[1729517411647,23.86,165.44,165.28,2.6129]
[1729517411950,3.0252,165.34,165.28,2.6129]
[1729517412542,5.7,165.37,165.28,2.6129]
[1729517412743,5.7,165.37,165.24,1.2748]
[1729517412744,23.86,165.37,165.17,65.32]
[1729517412951,23.86,165.37,165.19,5.7]
[1729517413253,3.0265,165.27,165.21,3.0274]
[1729517413552,3.0265,165.27,165.19,5.7]
[1729517414747,5.7,165.3,165.19,5.7]
[1729517415046,21.18643542,165.38,165.19,5.7]
[1729517415246,3.0262,165.28,165.23,3.0271]
[1729517415456,5.7,165.32,165.19,5.7]
[1729517415950,3.026,165.3,165.24,3.0268]
[1729517416149,5.7,165.32,165.19,5.7]
[1729517416457,3.0256,165.31,165.22,3.0271]
[1729517416755,3.0256,165.31,165.19,5.7]
[1729517417149,5.7,165.34,165.19,5.7]
[1729517417655,3.0256,165.32,165.27,3.0263]
[1729517417848,5.7,165.34,165.27,3.0263]
[1729517418442,8.78309275,165.34,165.27,3.0263]
[1729517418855,3.0256,165.31,165.27,3.0263]
[1729517419249,1.2499,165.43,165.24,5.7]
[1729517419552,5.7,165.42,165.24,5.7]
[1729517419852,8.79308706,165.42,165.24,5.7]
[1729517420057,3.0253,165.33,165.29,3.026]
[1729517420243,3.09308706,165.42,165.24,5.7]
[1729517420444,5.7,165.41,165.24,5.7]
[1729517420645,26.91522726,165.41,165.24,5.7]
[1729517421047,3.0253,165.33,165.24,5.7]
[1729517421247,26.91522726,165.41,165.24,5.7]
[1729517421248,5.7,165.36,165.24,5.7]
[1729517421448,5.7,165.38,165.24,5.7]
[1729517421645,3.0251,165.34,165.3,3.0257]
[1729517422353,2.99647871,165.36,165.24,5.7]
[1729517422549,5.7,165.38,165.24,5.7]
[1729517422948,3.025,165.35,165.3,3.0257]
[1729517424350,3.0251,165.34,165.3,3.0257]
[1729517426052,3.09489767,165.37,165.24,5.7]
[1729517426257,5.7,165.4,165.24,5.7]
[1729517426556,8.66771406,165.4,165.24,5.7]
[1729517426752,3.0249,165.36,165.3,3.0258]
[1729517426958,8.66771406,165.4,165.24,5.7]
[1729517427346,3.0243,165.39,165.24,5.7]
[1729517427551,5.7,165.42,165.24,5.7]
[1729517427959,3.06641583,165.41,165.25,6.0534]
[1729517428254,8.79245372,165.42,165.25,6.0534]
[1729517428456,3.0245,165.38,165.26,1.2337]
[1729517428651,3.0245,165.38,165.26,3.7762]
[1729517429047,3.0245,165.37,165.33,3.0251]
[1729517430559,8.79245372,165.42,165.32,3.0254]
[1729517431257,8.79245372,165.42,165.31,5.7]
[1729517431555,8.79245372,165.42,165.34,3.025]
[1729517431759,8.79245372,165.42,165.31,5.7]
[1729517432160,3.0242,165.39,165.31,5.7]
[1729517432352,8.79245372,165.42,165.31,5.7]
[1729517432552,8.79245372,165.42,165.37,3.0244]
[1729517432756,3.0239,165.41,165.37,3.0244]
[1729517432963,8.79245372,165.42,165.37,3.0244]
[1729517433860,3.024,165.4,165.37,3.0244]
[1729517434163,3.024,165.4,165.36,3.0246]
[1729517435166,8.79245372,165.42,165.31,5.7]
[1729517436361,3.024,165.4,165.34,3.025]
[1729517436559,8.79245372,165.42,165.34,3.025]
[1729517436966,8.79245372,165.42,165.33,3.0252]
[1729517437266,8.79245372,165.42,165.31,5.7]
[1729517437465,3.0243,165.39,165.31,5.7]
[1729517437659,8.79245372,165.42,165.34,3.0249]
[1729517438259,3.0241,165.4,165.34,3.0249]
[1729517438561,8.79245372,165.42,165.34,3.025]
[1729517438967,3.0243,165.39,165.31,5.7]
[1729517439163,3.0243,165.39,165.35,3.0248]
[1729517439460,3.0239,165.41,165.31,5.7]
[1729517439664,5.7,165.42,165.36,3.0246]
[1729517439861,1.2499,165.43,165.31,5.7]
[1729517440163,3.0239,165.41,165.37,3.0244]
[1729517440863,1.2559,165.47,165.38,3.0243]
[1729517441068,3.0234,165.44,165.36,5.7]
[1729517441368,5.7,165.48,165.41,3.0237]
[1729517441870,5.7,165.48,165.37,3.8948]
[1729517442073,23.86,165.48,165.37,2.5587]
[1729517442261,23.86,165.48,165.33,5.7]
[1729517442466,3.0242,165.39,165.35,3.0248]
[1729517442667,3.0242,165.39,165.33,5.7]
[1729517443068,3.0242,165.39,165.35,3.0248]
[1729517443269,3.0242,165.39,165.33,5.7]
[1729517443679,3.0242,165.39,165.35,3.0248]
[1729517445267,3.0241,165.4,165.36,3.0246]
[1729517446169,5.7,165.46,165.33,5.7]
[1729517446576,3.0235,165.43,165.39,3.024]
[1729517447472,83.54,165.49,165.39,3.024]
[1729517447669,3.0236,165.42,165.39,3.024]
[1729517448563,3.0236,165.42,165.33,5.7]
[1729517448765,3.0245,165.38,165.34,5.7]
[1729517448974,6.0453,165.48,165.32,2.5982]
[1729517448975,23.86,165.44,165.32,2.5982]
[1729517449172,23.86,165.44,165.32,8.2982]
[1729517449371,29.9066,165.44,165.29,65.38]
[1729517449569,1.3409,165.43,165.29,71.08]
[1729517449766,3.0247,165.37,165.33,3.0252]
[1729517449971,3.00096053,165.38,165.29,5.7]
[1729517450180,5.7,165.4,165.29,5.7]
[1729517450473,3.0251,165.35,165.31,3.0255]
[1729517450673,8.66039883,165.4,165.29,5.7]
[1729517451371,3.0247,165.36,165.29,5.7]
[1729517451571,8.66039883,165.4,165.29,5.7]
[1729517451970,3.0249,165.35,165.31,3.0255]
[1729517452574,3.0248,165.36,165.32,3.0253]
[1729517453574,3.0246,165.37,165.31,3.0256]
[1729517453772,8.66039883,165.4,165.29,5.7]
[1729517454571,26.82039883,165.4,165.25,3.9673]
[1729517454774,18.16,165.38,165.25,2.6419]
[1729517454970,3.0263,165.28,165.25,2.6419]
[1729517455175,3.0263,165.28,165.24,3.0268]
[1729517455974,3.0263,165.28,165.25,3.0267]
[1729517456778,3.06310078,165.31,165.21,2.5223]
[1729517457073,1.2426,165.32,165.14,5.7]
[1729517457276,1.2426,165.32,165.19,3.0277]
[1729517457483,1.2426,165.32,165.14,2.5428]
[1729517458170,5.7,165.31,165.14,2.5428]
[1729517458375,8.72918409,165.31,165.14,2.5428]
[1729517458575,3.0267,165.26,165.21,3.0273]
[1729517458781,8.72918409,165.31,165.18,5.7]
[1729517458977,18.16,165.3,165.14,2.5428]
[1729517459170,18.16,165.3,165.14,8.2428]
[1729517459878,5.7,165.29,165.14,8.2428]
[1729517460382,3.0266,165.26,165.21,3.0273]
[1729517460575,3.0266,165.26,165.14,8.2428]
[1729517460777,1.2426,165.32,165.14,8.2428]
[1729517460974,5.7,165.32,165.14,8.2428]
[1729517461379,3.0258,165.3,165.26,3.0265]
[1729517462286,8.7255,165.32,165.27,3.0262]
[1729517463282,3.0259,165.3,165.26,3.0265]
[1729517463483,2.97939291,165.31,165.23,3.8574]
[1729517463678,5.7,165.32,165.23,2.5906]
[1729517463881,5.7,165.32,165.16,1.3275]
[1729517464083,23.86,165.32,165.17,5.7]
[1729517464776,23.86,165.32,165.16,3.9345]
[1729517464978,6.0502,165.34,165.18,3.0279]
[1729517464979,18.16,165.31,165.18,3.0279]
[1729517465174,23.86,165.3,165.16,2.607]
[1729517465683,3.0273,165.23,165.16,2.607]
[1729517465883,5.7,165.25,165.16,2.607]
[1729517466288,3.0274,165.22,165.18,3.0279]
[1729517466488,5.7,165.25,165.16,2.607]
[1729517467283,8.7269,165.25,165.2,3.0275]
[1729517467489,3.0269,165.25,165.2,3.0275]
[1729517467682,5.7,165.26,165.16,2.607]
[1729517467885,5.7,165.27,165.16,2.607]
[1729517469184,3.00907478,165.31,165.16,2.607]
[1729517469386,5.7,165.3,165.16,2.607]
[1729517469587,8.7259,165.3,165.26,3.0264]
[1729517470983,8.7259,165.3,165.21,5.7]
[1729517470984,3.0261,165.29,165.25,3.0267]
[1729517471391,5.7,165.3,165.21,5.7]
[1729517471591,3.0264,165.27,165.24,3.0269]
[1729517471887,5.7,165.3,165.18,5.7]
[1729517472189,3.0272,165.23,165.19,3.0277]
[1729517472487,2.97987485,165.22,165.16,7.0252]
[1729517472683,3.0274,165.22,165.17,3.0281]
[1729517472892,5.7,165.24,165.16,1.3252]
[1729517473582,18.16,165.3,165.16,1.3252]
[1729517473781,3.0265,165.27,165.23,3.027]
[1729517474486,2.98744875,165.28,165.16,1.3252]
[1729517474678,5.7,165.29,165.16,1.3252]
[1729517475487,8.68320737,165.29,165.16,1.3252]
[1729517475883,3.0267,165.25,165.21,3.0274]